[Event "Snabbschacks-SM 2025"]
[Site "Norrköping, Sweden"]
[Date "2025.09.27"]
[Round "1.5"]
[White "Nyberg, Peter"]
[Black "Olsson, Linus"]
[Result "0-1"]
[TimeControl "25 min + 10 sec/move"]
[BlackTitle "FM"]
[WhiteElo "1992"]
[BlackElo "2166"]

1. e4 {[%clk 00:25:10]} {[%emt 00:28:54]} c5 {[%clk 00:25:10]} {[%emt
00:00:05]} 2. c4 {[%clk 00:25:10]} {[%emt 00:00:06]} Nc6 {[%clk 00:24:39]}
{[%emt 00:00:55]} 3. Nc3 {[%clk 00:25:14]} {[%emt 00:00:06]} g6 {[%clk
00:24:40]} {[%emt 00:00:09]} 4. g3 {[%clk 00:24:36]} {[%emt 00:00:48]} Bg7
{[%clk 00:24:35]} {[%emt 00:00:15]} 5. Bg2 {[%clk 00:24:15]} {[%emt 00:00:31]}
d6 {[%clk 00:23:36]} {[%emt 00:01:09]} 6. Nge2 {[%clk 00:24:01]} {[%emt
00:00:23]} Nf6 {[%clk 00:23:11]} {[%emt 00:00:36]} 7. d3 {[%clk 00:23:37]}
{[%emt 00:00:33]} O-O {[%clk 00:23:08]} {[%emt 00:00:14]} 8. O-O {[%clk
00:23:38]} {[%emt 00:00:09]} Rb8 {[%clk 00:22:01]} {[%emt 00:01:17]} 9. a4
{[%clk 00:22:37]} {[%emt 00:01:11]} Ne8 {[%clk 00:21:45]} {[%emt 00:00:26]} 10.
Be3 {[%clk 00:22:36]} {[%emt 00:00:11]} Nc7 {[%clk 00:21:25]} {[%emt 00:00:30]}
11. d4 {[%clk 00:22:35]} {[%emt 00:00:11]} cxd4 {[%clk 00:21:03]} {[%emt
00:00:32]} 12. Nxd4 {[%clk 00:22:44]} {[%emt 00:00:01]} Ne6 {[%clk 00:18:39]}
{[%emt 00:02:33]} 13. Nde2 {[%clk 00:22:46]} {[%emt 00:00:08]} Qa5 {[%clk
00:16:46]} {[%emt 00:02:03]} 14. Rc1 {[%clk 00:08:56]} {[%emt 00:14:00]} Nc5
{[%clk 00:15:51]} {[%emt 00:01:05]} 15. b3 {[%clk 00:06:43]} {[%emt 00:02:23]}
Bg4 {[%clk 00:15:06]} {[%emt 00:00:54]} 16. f3 {[%clk 00:06:38]} {[%emt
00:00:15]} Be6 {[%clk 00:14:54]} {[%emt 00:00:22]} 17. Nd5 {[%clk 00:05:17]}
{[%emt 00:01:32]} Bxd5 {[%clk 00:14:38]} {[%emt 00:00:26]} 18. exd5 {[%clk
00:05:07]} {[%emt 00:00:20]} Ne5 {[%clk 00:12:21]} {[%emt 00:02:27]} 19. Bd4
{[%clk 00:04:18]} {[%emt 00:00:59]} a6 {[%clk 00:11:31]} {[%emt 00:01:00]} 20.
f4 {[%clk 00:03:01]} {[%emt 00:01:26]} Ned3 {[%clk 00:10:30]} {[%emt 00:01:12]}
21. Bxg7 {[%clk 00:03:10]} {[%emt 00:00:01]} Kxg7 {[%clk 00:09:37]} {[%emt
00:01:02]} 22. Rc3 {[%clk 00:03:11]} {[%emt 00:00:08]} Nb4 {[%clk 00:09:22]}
{[%emt 00:00:27]} 23. Qd4+ {[%clk 00:02:56]} {[%emt 00:00:25]} Kg8 {[%clk
00:09:20]} {[%emt 00:00:12]} 24. f5 {[%clk 00:02:44]} {[%emt 00:00:22]} Nd7
{[%clk 00:08:14]} {[%emt 00:01:16]} 25. fxg6 {[%clk 00:02:23]} {[%emt
00:00:31]} hxg6 {[%clk 00:08:19]} {[%emt 00:00:05]} 26. Rf4 {[%clk 00:01:54]}
{[%emt 00:00:39]} Qc5 {[%clk 00:08:25]} {[%emt 00:00:04]} 27. Rcf3 {[%clk
00:01:48]} {[%emt 00:00:16]} Ne5 {[%clk 00:07:39]} {[%emt 00:00:55]} 28. Rc3
{[%clk 00:01:20]} {[%emt 00:00:38]} Rfc8 {[%clk 00:06:09]} {[%emt 00:01:40]} 29.
Qxc5 {[%clk 00:01:15]} {[%emt 00:00:15]} Rxc5 {[%clk 00:06:01]} {[%emt
00:00:18]} 30. Nd4 {[%clk 00:00:43]} {[%emt 00:00:42]} b5 {[%clk 00:05:30]}
{[%emt 00:00:41]} 31. axb5 {[%clk 00:00:52]} {[%emt 00:00:02]} axb5 {[%clk
00:05:38]} {[%emt 00:00:02]} 32. Nxb5 {[%clk 00:00:59]} {[%emt 00:00:03]} Nbd3
{[%clk 00:05:31]} {[%emt 00:00:17]} 33. b4 {[%clk 00:00:32]} {[%emt 00:00:38]}
Nxf4 {[%clk 00:04:11]} {[%emt 00:01:30]} 34. bxc5 {[%clk 00:00:36]} {[%emt
00:00:05]} Ne2+ {[%clk 00:04:18]} {[%emt 00:00:03]} 0-1

[ePGN "0.1;DGT LiveChess/2.2.7"]

[Event "Snabbschacks-SM 2025"]
[Site "Norrköping, Sweden"]
[Date "2025.09.27"]
[Round "4.7"]
[White "Lilliehook, Victor"]
[Black "Nygren, Kim"]
[Result "1-0"]
[TimeControl "25 min + 10 sec/move"]
[BlackTitle "CM"]
[WhiteElo "2136"]
[BlackElo "2173"]

1. e4 {[%clk 00:25:18]} {[%emt 00:00:02]} e5 {[%clk 00:24:59]} {[%emt
00:00:21]} 2. Nf3 {[%clk 00:25:19]} {[%emt 00:00:09]} Nc6 {[%clk 00:25:08]}
{[%emt 00:00:01]} 3. Bc4 {[%clk 00:24:35]} {[%emt 00:00:54]} Nf6 {[%clk
00:25:12]} {[%emt 00:00:06]} 4. d4 {[%clk 00:24:37]} {[%emt 00:00:08]} exd4
{[%clk 00:25:00]} {[%emt 00:00:23]} 5. e5 {[%clk 00:24:45]} {[%emt 00:00:01]}
d5 {[%clk 00:24:39]} {[%emt 00:00:31]} 6. Bb5 {[%clk 00:24:53]} {[%emt
00:00:01]} Nd7 {[%clk 00:23:46]} {[%emt 00:01:04]} 7. O-O {[%clk 00:24:56]}
{[%emt 00:00:07]} Ndb8 {[%clk 00:22:51]} {[%emt 00:01:05]} 8. Nxd4 {[%clk
00:18:16]} {[%emt 00:06:50]} Bc5 {[%clk 00:22:24]} {[%emt 00:00:37]} 9. Nc3
{[%clk 00:16:42]} {[%emt 00:01:44]} Bb6 {[%clk 00:14:03]} {[%emt 00:08:31]} 10.
Nf3 {[%clk 00:15:15]} {[%emt 00:01:37]} Be6 {[%clk 00:12:40]} {[%emt 00:01:32]}
11. Ng5 {[%clk 00:09:08]} {[%emt 00:06:18]} d4 {[%clk 00:09:32]} {[%emt
00:03:18]} 12. Nxe6 {[%clk 00:08:15]} {[%emt 00:01:03]} fxe6 {[%clk 00:09:41]}
{[%emt 00:00:02]} 13. Ne4 {[%clk 00:07:46]} {[%emt 00:00:39]} Qd5 {[%clk
00:06:17]} {[%emt 00:03:34]} 14. Qh5+ {[%clk 00:06:29]} {[%emt 00:01:26]} g6
{[%clk 00:05:02]} {[%emt 00:01:26]} 15. Nf6+ {[%clk 00:06:21]} {[%emt
00:00:18]} Kf7 {[%clk 00:04:40]} {[%emt 00:00:31]} 16. Nxd5 {[%clk 00:05:04]}
{[%emt 00:01:28]} gxh5 {[%clk 00:04:49]} {[%emt 00:00:02]} 17. Nxb6 {[%clk
00:05:12]} {[%emt 00:00:01]} axb6 {[%clk 00:04:35]} {[%emt 00:00:24]} 18. f4
{[%clk 00:04:49]} {[%emt 00:00:33]} Nd7 {[%clk 00:04:03]} {[%emt 00:00:42]} 19.
Rd1 {[%clk 00:04:15]} {[%emt 00:00:44]} Nc5 {[%clk 00:03:26]} {[%emt 00:00:47]}
20. Bxc6 {[%clk 00:04:09]} {[%emt 00:00:17]} bxc6 {[%clk 00:03:35]} {[%emt
00:00:01]} 21. Rxd4 {[%clk 00:04:17]} {[%emt 00:00:02]} Rhg8 {[%clk 00:03:27]}
{[%emt 00:00:18]} 22. Be3 {[%clk 00:03:47]} {[%emt 00:00:39]} Kg6 {[%clk
00:03:24]} {[%emt 00:00:14]} 23. Rc4 {[%clk 00:03:19]} {[%emt 00:00:37]} Na6
{[%clk 00:03:08]} {[%emt 00:00:28]} 24. Rxc6 {[%clk 00:02:56]} {[%emt
00:00:33]} Kf5 {[%clk 00:03:15]} {[%emt 00:00:02]} 25. Kf2 {[%clk 00:02:10]}
{[%emt 00:00:55]} Rg7 {[%clk 00:03:11]} {[%emt 00:00:15]} 26. Rc3 {[%clk
00:01:24]} {[%emt 00:00:56]} Nb4 {[%clk 00:02:48]} {[%emt 00:00:33]} 27. Kf3
{[%clk 00:00:20]} {[%emt 00:01:14]} Nd5 {[%clk 00:00:24]} {[%emt 00:02:34]} 28.
Rd3 {[%clk 00:00:16]} {[%emt 00:00:13]} Ra4 {[%clk 00:00:28]} {[%emt 00:00:07]}
29. g3 {[%clk 00:00:21]} {[%emt 00:00:06]} c5 {[%clk 00:00:19]} {[%emt
00:00:18]} 30. b3 {[%clk 00:00:16]} {[%emt 00:00:15]} Ra6 {[%clk 00:00:21]}
{[%emt 00:00:08]} 31. Bd2 {[%clk 00:00:15]} {[%emt 00:00:11]} Rga7 {[%clk
00:00:21]} {[%emt 00:00:10]} 32. c4 {[%clk 00:00:18]} {[%emt 00:00:08]} Ne7
{[%clk 00:00:24]} {[%emt 00:00:07]} 33. a4 {[%clk 00:00:21]} {[%emt 00:00:06]}
Nc6 {[%clk 00:00:27]} {[%emt 00:00:07]} 34. Bc3 {[%clk 00:00:31]} Rc7 {[%clk
00:00:15]} {[%emt 00:00:23]} 35. h3 {[%clk 00:00:30]} {[%emt 00:00:10]} Ra8
{[%clk 00:00:18]} {[%emt 00:00:07]} 36. Rd6 {[%clk 00:00:23]} {[%emt 00:00:17]}
Rg8 {[%clk 00:00:20]} {[%emt 00:00:08]} 37. Rg1 {[%clk 00:00:30]} {[%emt
00:00:03]} Nd8 {[%clk 00:00:20]} {[%emt 00:00:11]} 38. g4+ {[%clk 00:00:24]}
{[%emt 00:00:16]} hxg4+ {[%clk 00:00:28]} {[%emt 00:00:01]} 39. Rxg4 {[%clk
00:00:31]} {[%emt 00:00:03]} Rxg4 {[%clk 00:00:18]} {[%emt 00:00:20]} 40. hxg4+
{[%clk 00:00:39]} {[%emt 00:00:01]} Kg6 {[%clk 00:00:28]} 41. Rxd8 {[%clk
00:00:48]} {[%emt 00:00:01]} 1-0

[Event "Snabbschacks-SM 2025"]
[Site "Norrköping, Sweden"]
[Date "2025.09.27"]
[Round "1.6"]
[White "Religa, Marek"]
[Black "Bergdahl, Martin"]
[Result "1-0"]
[TimeControl "25 min + 10 sec/move"]
[WhiteElo "2207"]
[BlackElo "1954"]

1. f4 {[%clk 00:25:18]} {[%emt 00:00:02]} c6 {[%clk 00:25:18]} {[%emt
00:00:03]} 2. Nf3 {[%clk 00:25:24]} {[%emt 00:00:03]} d5 {[%clk 00:25:27]} 3.
d3 {[%clk 00:25:31]} {[%emt 00:00:04]} Nf6 {[%clk 00:25:34]} {[%emt 00:00:02]}
4. g3 {[%clk 00:25:40]} {[%emt 00:00:01]} g6 {[%clk 00:25:43]} {[%emt
00:00:02]} 5. Bg2 {[%clk 00:25:49]} Bg7 {[%clk 00:25:52]} 6. O-O {[%clk
00:25:57]} {[%emt 00:00:03]} O-O {[%clk 00:25:59]} {[%emt 00:00:02]} 7. Nc3
{[%clk 00:24:57]} {[%emt 00:01:10]} Nbd7 {[%clk 00:24:58]} {[%emt 00:01:11]} 8.
e4 {[%emt 00:00:10]} dxe4 {[%clk 00:24:27]} {[%emt 00:00:39]} 9. dxe4 {[%clk
00:25:00]} Qb6+ {[%clk 00:24:35]} {[%emt 00:00:11]} 10. Kh1 {[%clk 00:25:03]}
Ng4 {[%clk 00:23:51]} {[%emt 00:01:02]} 11. Qe2 {[%clk 00:25:07]} Nc5 {[%clk
00:22:05]} {[%emt 00:02:02]} 12. h3 {[%clk 00:25:14]} Bxc3 {[%clk 00:21:55]}
{[%emt 00:00:22]} 13. hxg4 {[%clk 00:24:14]} {[%emt 00:01:10]} Bg7 {[%clk
00:21:22]} {[%emt 00:00:44]} 14. f5 {[%clk 00:23:58]} {[%emt 00:00:26]} Qa6
{[%clk 00:20:38]} {[%emt 00:00:53]} 15. Qe3 {[%clk 00:23:16]} {[%emt 00:00:52]}
Na4 {[%clk 00:20:04]} {[%emt 00:00:44]} 16. c3 {[%clk 00:22:10]} {[%emt
00:01:16]} Rd8 {[%clk 00:20:12]} {[%emt 00:00:02]} 17. Qf4 {[%clk 00:20:53]}
{[%emt 00:01:27]} c5 {[%clk 00:16:30]} {[%emt 00:03:52]} 18. e5 {[%clk
00:18:08]} {[%emt 00:02:55]} h5 {[%clk 00:14:52]} {[%emt 00:01:47]} 19. Nh4
{[%clk 00:13:28]} {[%emt 00:04:51]} gxf5 {[%clk 00:11:07]} {[%emt 00:03:54]} 20.
gxf5 {[%clk 00:13:26]} {[%emt 00:00:13]} Bd7 {[%clk 00:06:49]} {[%emt
00:04:28]} 21. f6 {[%clk 00:11:25]} {[%emt 00:02:11]} Bb5 {[%clk 00:06:58]} 22.
Qg5 {[%emt 00:00:49]} 1-0

[Event "Snabbschacks-SM 2025"]
[Site "Norrköping, Sweden"]
[Date "2025.09.27"]
[Round "3.2"]
[White "Religa, Marek"]
[Black "Olsson, Simon"]
[Result "1-0"]
[TimeControl "25 min + 10 sec/move"]
[WhiteElo "2207"]
[BlackElo "2068"]

1. e4 {[%clk 00:25:14]} {[%emt 00:00:06]} c5 {[%clk 00:25:17]} {[%emt
00:00:03]} 2. Nc3 {[%clk 00:25:22]} {[%emt 00:00:02]} e6 {[%clk 00:25:25]}
{[%emt 00:00:03]} 3. d4 {[%clk 00:25:31]} cxd4 {[%clk 00:25:29]} {[%emt
00:00:06]} 4. Qxd4 {[%clk 00:25:40]} Nc6 {[%clk 00:25:37]} {[%emt 00:00:02]} 5.
Qd3 {[%clk 00:25:49]} {[%emt 00:00:01]} Nf6 {[%clk 00:22:20]} {[%emt 00:03:27]}
6. Bf4 {[%clk 00:25:58]} {[%emt 00:00:01]} e5 {[%clk 00:22:18]} {[%emt
00:00:12]} 7. Bg5 {[%clk 00:25:37]} {[%emt 00:00:31]} Be7 {[%clk 00:22:19]}
{[%emt 00:00:09]} 8. O-O-O {[%clk 00:25:21]} {[%emt 00:00:25]} O-O {[%clk
00:21:50]} {[%emt 00:00:40]} 9. f3 {[%clk 00:25:21]} {[%emt 00:00:10]} a6
{[%clk 00:19:13]} {[%emt 00:02:47]} 10. g4 {[%clk 00:24:47]} {[%emt 00:00:43]}
b5 {[%clk 00:16:28]} {[%emt 00:02:55]} 11. Be3 {[%clk 00:24:56]} {[%emt
00:00:01]} b4 {[%clk 00:14:21]} {[%emt 00:02:17]} 12. Nd5 {[%clk 00:25:05]}
Nxd5 {[%clk 00:14:23]} {[%emt 00:00:08]} 13. exd5 {[%clk 00:25:13]} {[%emt
00:00:02]} Nd4 {[%clk 00:14:30]} {[%emt 00:00:03]} 14. h4 {[%clk 00:22:39]}
{[%emt 00:02:44]} Qa5 {[%clk 00:14:20]} {[%emt 00:00:19]} 15. h5 {[%clk
00:19:44]} {[%emt 00:03:06]} Qxa2 {[%clk 00:11:25]} {[%emt 00:03:06]} 16. h6
{[%clk 00:19:19]} {[%emt 00:00:35]} g6 {[%clk 00:11:30]} {[%emt 00:00:05]} 17.
Bxd4 {[%clk 00:18:59]} {[%emt 00:00:30]} exd4 {[%clk 00:10:53]} {[%emt
00:00:46]} 18. Qxd4 {[%clk 00:18:49]} {[%emt 00:00:19]} 1-0

[Event "Snabbschacks-SM 2025"]
[Site "Norrköping, Sweden"]
[Date "2025.09.27"]
[Round "4.8"]
[White "Bohman Karlholm, Adrian"]
[Black "Malmsten, Hans"]
[Result "0-1"]
[TimeControl "25 min + 10 sec/move"]
[WhiteElo "2102"]
[BlackElo "2024"]

1. d4 {[%clk 00:25:18]} {[%emt 00:00:01]} Nf6 {[%clk 00:25:19]} {[%emt
00:00:02]} 2. c4 {[%clk 00:25:26]} {[%emt 00:00:02]} e5 {[%clk 00:25:28]}
{[%emt 00:00:01]} 3. dxe5 {[%clk 00:25:32]} {[%emt 00:00:04]} Ng4 {[%clk
00:25:36]} {[%emt 00:00:02]} 4. Bf4 {[%clk 00:25:37]} {[%emt 00:00:04]} Bb4+
{[%clk 00:25:44]} {[%emt 00:00:02]} 5. Nc3 {[%clk 00:25:43]} {[%emt 00:00:04]}
Nc6 {[%clk 00:25:45]} {[%emt 00:00:09]} 6. Nf3 {[%clk 00:25:47]} {[%emt
00:00:06]} Bxc3+ {[%clk 00:25:53]} {[%emt 00:00:02]} 7. bxc3 {[%clk 00:25:53]}
{[%emt 00:00:03]} Qe7 {[%clk 00:26:02]} {[%emt 00:00:02]} 8. Qd5 {[%clk
00:25:56]} {[%emt 00:00:07]} f6 {[%clk 00:26:10]} {[%emt 00:00:02]} 9. exf6
{[%clk 00:25:55]} {[%emt 00:00:10]} Nxf6 {[%clk 00:26:18]} {[%emt 00:00:02]} 10.
Qd3 {[%clk 00:25:47]} {[%emt 00:00:18]} d6 {[%clk 00:26:26]} {[%emt 00:00:02]}
11. g3 {[%clk 00:25:21]} {[%emt 00:00:36]} O-O {[%clk 00:26:19]} {[%emt
00:00:17]} 12. Bg2 {[%clk 00:25:22]} {[%emt 00:00:08]} Bg4 {[%clk 00:26:12]}
{[%emt 00:00:18]} 13. O-O {[%clk 00:25:16]} {[%emt 00:00:16]} Rae8 {[%clk
00:26:05]} {[%emt 00:00:17]} 14. Rae1 {[%clk 00:25:05]} {[%emt 00:00:21]} Ne5
{[%clk 00:23:34]} {[%emt 00:02:42]} 15. Nxe5 {[%clk 00:23:06]} {[%emt
00:02:09]} dxe5 {[%clk 00:23:42]} {[%emt 00:00:02]} 16. Be3 {[%clk 00:23:07]}
{[%emt 00:00:08]} Rd8 {[%clk 00:22:22]} {[%emt 00:01:31]} 17. Qb1 {[%clk
00:22:40]} {[%emt 00:00:36]} b6 {[%clk 00:22:15]} {[%emt 00:00:18]} 18. c5
{[%clk 00:17:13]} {[%emt 00:05:36]} Nd5 {[%clk 00:21:27]} {[%emt 00:00:58]} 19.
Bxd5+ {[%clk 00:16:29]} {[%emt 00:00:55]} Rxd5 {[%clk 00:21:35]} {[%emt
00:00:02]} 20. Qe4 {[%clk 00:16:15]} {[%emt 00:00:23]} Qe6 {[%clk 00:17:15]}
{[%emt 00:04:31]} 21. c4 {[%clk 00:13:50]} {[%emt 00:02:35]} Rd7 {[%clk
00:15:57]} {[%emt 00:01:26]} 22. cxb6 {[%clk 00:12:28]} {[%emt 00:01:34]} axb6
{[%clk 00:16:01]} {[%emt 00:00:06]} 23. f3 {[%clk 00:11:31]} {[%emt 00:01:06]}
Bh3 {[%clk 00:15:49]} {[%emt 00:00:22]} 24. Rf2 {[%clk 00:11:35]} {[%emt
00:00:07]} Bf5 {[%clk 00:15:57]} {[%emt 00:00:02]} 25. Qh4 {[%clk 00:11:29]}
{[%emt 00:00:15]} Ra8 {[%clk 00:13:39]} {[%emt 00:02:27]} 26. c5 {[%clk
00:10:32]} {[%emt 00:01:09]} b5 {[%clk 00:11:24]} {[%emt 00:02:24]} 27. Qb4
{[%clk 00:10:07]} {[%emt 00:00:35]} c6 {[%clk 00:11:06]} {[%emt 00:00:29]} 28.
a3 {[%clk 00:09:51]} {[%emt 00:00:26]} Ra4 {[%clk 00:06:40]} {[%emt 00:04:36]}
29. Qc3 {[%clk 00:08:50]} {[%emt 00:01:11]} Rc4 {[%clk 00:06:10]} {[%emt
00:00:40]} 30. Qb3 {[%clk 00:08:02]} {[%emt 00:00:58]} Bc2 {[%clk 00:05:30]}
{[%emt 00:00:49]} 31. Qb2 {[%clk 00:08:04]} {[%emt 00:00:08]} Ba4 {[%clk
00:05:20]} {[%emt 00:00:21]} 32. Kg2 {[%clk 00:07:41]} {[%emt 00:00:33]} Rc2
{[%clk 00:04:52]} {[%emt 00:00:38]} 33. Qb4 {[%clk 00:07:31]} {[%emt 00:00:19]}
Qd5 {[%clk 00:03:56]} {[%emt 00:01:07]} 34. Rff1 {[%clk 00:07:05]} {[%emt
00:00:36]} h6 {[%clk 00:03:53]} {[%emt 00:00:13]} 35. Qg4 {[%clk 00:06:29]}
{[%emt 00:00:46]} Rc4 {[%clk 00:03:43]} {[%emt 00:00:20]} 36. Qh5 {[%clk
00:05:55]} {[%emt 00:00:43]} Bb3 {[%clk 00:02:24]} {[%emt 00:01:30]} 37. Rc1
{[%clk 00:05:36]} {[%emt 00:00:29]} Bc2 {[%clk 00:01:58]} {[%emt 00:00:36]} 38.
Bxh6 {[%clk 00:04:51]} {[%emt 00:00:54]} gxh6 {[%clk 00:02:03]} {[%emt
00:00:06]} 39. Rxc2 {[%clk 00:04:59]} {[%emt 00:00:02]} Kg7 {[%clk 00:00:56]}
{[%emt 00:01:18]} 40. Rxc4 {[%clk 00:04:47]} {[%emt 00:00:21]} bxc4 {[%clk
00:01:03]} {[%emt 00:00:02]} 41. Qg4+ {[%clk 00:04:40]} {[%emt 00:00:17]} Kh8
{[%clk 00:00:58]} {[%emt 00:00:15]} 42. Rb1 {[%clk 00:04:04]} {[%emt 00:00:47]}
c3 {[%clk 00:00:52]} {[%emt 00:00:16]} 43. Rb8+ {[%clk 00:03:21]} {[%emt
00:00:53]} Kh7 {[%clk 00:01:01]} {[%emt 00:00:01]} 44. Qf5+ {[%clk 00:03:19]}
{[%emt 00:00:11]} Kg7 {[%clk 00:01:09]} {[%emt 00:00:02]} 45. Qf8+ {[%clk
00:02:58]} {[%emt 00:00:32]} Kg6 {[%clk 00:01:07]} {[%emt 00:00:11]} 46. Qh8
{[%clk 00:01:37]} {[%emt 00:01:31]} Rg7 {[%clk 00:00:32]} {[%emt 00:00:45]} 47.
Rd8 {[%clk 00:01:21]} {[%emt 00:00:25]} c2 {[%clk 00:00:16]} {[%emt 00:00:26]}
48. Rxd5 {[%clk 00:01:20]} {[%emt 00:00:11]} cxd5 {[%clk 00:00:26]} {[%emt
00:00:01]} 49. Qe8+ {[%clk 00:01:23]} {[%emt 00:00:07]} Kh7 {[%clk 00:00:33]}
{[%emt 00:00:04]} 50. Qxe5 {[%clk 00:00:59]} {[%emt 00:00:33]} c1=Q {[%clk
00:00:41]} {[%emt 00:00:01]} 51. Qf5+ {[%clk 00:00:58]} {[%emt 00:00:12]} Kh8
{[%clk 00:00:40]} {[%emt 00:00:10]} 52. Qf8+ {[%clk 00:00:58]} {[%emt
00:00:11]} Rg8 {[%clk 00:00:39]} {[%emt 00:00:11]} 53. Qf6+ {[%clk 00:00:59]}
{[%emt 00:00:08]} Rg7 {[%clk 00:00:38]} {[%emt 00:00:12]} 54. Qf8+ {[%clk
00:01:04]} {[%emt 00:00:04]} Rg8 {[%clk 00:00:28]} {[%emt 00:00:21]} 55. Qf6+
{[%clk 00:01:10]} {[%emt 00:00:04]} Kh7 {[%clk 00:00:35]} {[%emt 00:00:03]} 56.
Qf5+ {[%clk 00:01:04]} {[%emt 00:00:16]} Kg7 {[%clk 00:00:42]} {[%emt
00:00:03]} 57. Qd7+ {[%clk 00:00:59]} {[%emt 00:00:14]} Kh8 {[%clk 00:00:37]}
{[%emt 00:00:14]} 58. Qxd5 {[%clk 00:01:07]} {[%emt 00:00:03]} Qe3 {[%clk
00:00:29]} {[%emt 00:00:18]} 59. Kh3 {[%clk 00:00:22]} {[%emt 00:00:55]} Qxe2
{[%clk 00:00:24]} {[%emt 00:00:15]} 60. Qd4+ {[%clk 00:00:30]} Rg7 {[%clk
00:00:29]} {[%emt 00:00:05]} 61. Qf6 {[%clk 00:00:17]} {[%emt 00:00:23]} Qf1+
{[%clk 00:00:17]} {[%emt 00:00:22]} 62. Kh4 {[%clk 00:00:26]} {[%emt 00:00:02]}
Qc4+ {[%clk 00:00:26]} {[%emt 00:00:01]} 63. Kh3 {[%clk 00:00:19]} {[%emt
00:00:16]} Qxc5 {[%clk 00:00:32]} {[%emt 00:00:05]} 64. Qd8+ {[%clk 00:00:18]}
{[%emt 00:00:11]} Rg8 {[%clk 00:00:25]} {[%emt 00:00:17]} 65. Qd2 {[%clk
00:00:13]} {[%emt 00:00:15]} Qg5 {[%clk 00:00:16]} {[%emt 00:00:19]} 66. Qd4+
{[%clk 00:00:17]} {[%emt 00:00:05]} Qg7 {[%clk 00:00:24]} {[%emt 00:00:03]} 67.
Qd2 {[%clk 00:00:20]} {[%emt 00:00:07]} Qf6 {[%clk 00:00:26]} {[%emt 00:00:08]}
68. f4 {[%clk 00:00:20]} {[%emt 00:00:10]} Rd8 {[%clk 00:00:32]} {[%emt
00:00:04]} 69. Qa5 {[%clk 00:00:15]} {[%emt 00:00:15]} Qe6+ {[%clk 00:00:25]}
{[%emt 00:00:16]} 70. Kh4 {[%clk 00:00:22]} {[%emt 00:00:03]} Qe7+ {[%clk
00:00:32]} {[%emt 00:00:05]} 71. Kh3 {[%clk 00:00:27]} {[%emt 00:00:04]} Qd7+
{[%clk 00:00:40]} {[%emt 00:00:03]} 72. Kh4 {[%clk 00:00:31]} {[%emt 00:00:05]}
Qe7+ {[%clk 00:00:48]} {[%emt 00:00:02]} 73. Kh3 {[%clk 00:00:38]} {[%emt
00:00:02]} Kg7 {[%clk 00:00:55]} {[%emt 00:00:03]} 74. Qc3+ {[%clk 00:00:43]}
{[%emt 00:00:05]} Qf6 {[%clk 00:01:02]} {[%emt 00:00:03]} 75. Qc7+ {[%clk
00:00:50]} {[%emt 00:00:03]} Kh8 {[%clk 00:01:05]} {[%emt 00:00:07]} 76. a4
{[%clk 00:00:40]} {[%emt 00:00:19]} Qf5+ {[%clk 00:00:53]} {[%emt 00:00:21]} 77.
Kh4 {[%clk 00:00:20]} {[%emt 00:00:31]} Rg8 {[%clk 00:01:00]} {[%emt 00:00:03]}
78. Qc3+ {[%clk 00:00:23]} {[%emt 00:00:08]} Kh7 {[%clk 00:01:03]} {[%emt
00:00:07]} 79. h3 {[%clk 00:00:19]} {[%emt 00:00:12]} Rc8 {[%clk 00:01:00]}
{[%emt 00:00:14]} 80. Qd4 {[%clk 00:00:22]} {[%emt 00:00:08]} Rc5 {[%clk
00:00:46]} {[%emt 00:00:24]} 81. g4 {[%clk 00:00:16]} {[%emt 00:00:15]} Qd5
{[%clk 00:00:53]} {[%emt 00:00:04]} 82. Qb4 {[%clk 00:00:21]} {[%emt 00:00:04]}
Qd8+ {[%clk 00:00:42]} {[%emt 00:00:20]} 83. Kg3 {[%clk 00:00:18]} {[%emt
00:00:14]} Rd5 {[%clk 00:00:46]} {[%emt 00:00:07]} 84. Qb1+ {[%clk 00:00:11]}
{[%emt 00:00:17]} Rd3+ {[%clk 00:00:48]} {[%emt 00:00:09]} 85. Kf2 {[%clk
00:00:14]} {[%emt 00:00:06]} Qd4+ {[%clk 00:00:56]} {[%emt 00:00:02]} 86. Kg2
{[%clk 00:00:11]} {[%emt 00:00:13]} Qe4+ {[%clk 00:00:59]} {[%emt 00:00:07]} 87.
Kh2 {[%clk 00:00:18]} {[%emt 00:00:03]} Rd2+ {[%clk 00:01:00]} {[%emt
00:00:09]} 0-1